[Event "18èmeFestival International d’Echecsde Rochefort"]
[Site "Rochefort, France"]
[Date "2019.02.21"]
[Round "8.5"]
[White "MARTINEZ DUANY, Lelys Stanley"]
[Black "NI, Shiqun"]
[Result "0-1"]
[TimeControl "1h30 min/40coups + 30 min +  30sec/coup"]
[WhiteTitle "GM"]
[BlackTitle "WGM"]
[WhiteFideId "3504727"]
[WhiteElo "2547"]
[BlackElo "2427"]

1. c4 {[%clk 01:28:56]} {[%emt 00:01:55]} Nf6 {[%clk 01:27:06]} {[%emt
00:03:54]} 2. Nc3 {[%clk 01:28:29]} {[%emt 00:00:57]} e5 {[%clk 01:27:30]}
{[%emt 00:00:07]} 3. g3 {[%clk 01:28:29]} {[%emt 00:00:30]} Bb4 {[%clk
01:27:57]} {[%emt 00:00:04]} 4. Bg2 {[%clk 01:28:52]} {[%emt 00:00:07]} O-O
{[%clk 01:27:55]} {[%emt 00:00:31]} 5. e4 {[%clk 01:29:14]} {[%emt 00:00:07]}
Bxc3 {[%clk 01:27:38]} {[%emt 00:00:47]} 6. dxc3 {[%clk 01:27:31]} {[%emt
00:02:13]} d6 {[%clk 01:26:25]} {[%emt 00:01:44]} 7. Qe2 {[%clk 01:26:31]}
{[%emt 00:01:29]} Be6 {[%clk 01:25:24]} {[%emt 00:01:32]} 8. Nf3 {[%clk
01:26:21]} {[%emt 00:00:39]} Nc6 {[%clk 01:25:22]} {[%emt 00:00:33]} 9. Nd2
{[%clk 01:24:10]} {[%emt 00:02:41]} Nd7 {[%clk 01:14:15]} {[%emt 00:11:37]} 10.
O-O {[%clk 01:18:15]} {[%emt 00:06:24]} Qg5 {[%clk 01:11:55]} {[%emt 00:02:50]}
11. f4 {[%clk 01:09:14]} {[%emt 00:09:32]} exf4 {[%clk 01:11:57]} {[%emt
00:00:29]} 12. gxf4 {[%clk 01:09:37]} {[%emt 00:00:07]} Qg4 {[%clk 01:12:23]}
{[%emt 00:00:04]} 13. Qxg4 {[%clk 00:54:50]} {[%emt 00:15:17]} Bxg4 {[%clk
01:12:50]} {[%emt 00:00:02]} 14. h3 {[%clk 00:55:09]} {[%emt 00:00:11]} Bh5
{[%clk 01:13:05]} {[%emt 00:00:16]} 15. Re1 {[%clk 00:54:15]} {[%emt 00:01:24]}
Rae8 {[%clk 01:08:26]} {[%emt 00:05:08]} 16. Nf1 {[%clk 00:52:53]} {[%emt
00:01:52]} f5 {[%clk 00:59:14]} {[%emt 00:09:43]} 17. Ng3 {[%clk 00:53:15]}
{[%emt 00:00:07]} Bg6 {[%clk 00:59:41]} {[%emt 00:00:04]} 18. Bd2 {[%clk
00:53:30]} {[%emt 00:00:14]} fxe4 {[%clk 00:59:38]} {[%emt 00:00:33]} 19. Nxe4
{[%clk 00:53:51]} {[%emt 00:00:09]} h6 {[%clk 00:55:45]} {[%emt 00:04:23]} 20.
b3 {[%clk 00:52:31]} {[%emt 00:01:50]} a5 {[%clk 00:50:44]} {[%emt 00:05:31]}
21. Re3 {[%clk 00:40:14]} {[%emt 00:12:46]} a4 {[%clk 00:43:15]} {[%emt
00:08:00]} 22. Ng3 {[%clk 00:29:01]} {[%emt 00:11:42]} Nc5 {[%clk 00:31:53]}
{[%emt 00:11:53]} 23. b4 {[%clk 00:26:49]} {[%emt 00:02:41]} Rxe3 {[%clk
00:28:12]} {[%emt 00:04:12]} 24. Bxe3 {[%clk 00:27:13]} {[%emt 00:00:05]} Nd3
{[%clk 00:26:57]} {[%emt 00:01:45]} 25. f5 {[%clk 00:21:14]} {[%emt 00:06:30]}
Bf7 {[%clk 00:27:25]} {[%emt 00:00:03]} 26. f6 {[%clk 00:18:33]} {[%emt
00:03:10]} Bxc4 {[%clk 00:27:09]} {[%emt 00:00:46]} 27. fxg7 {[%clk 00:18:50]}
{[%emt 00:00:13]} Kxg7 {[%clk 00:27:33]} {[%emt 00:00:06]} 28. a3 {[%clk
00:18:36]} {[%emt 00:00:45]} d5 {[%clk 00:20:19]} {[%emt 00:07:45]} 29. Kh2
{[%clk 00:17:02]} {[%emt 00:02:03]} Kh7 {[%clk 00:18:29]} {[%emt 00:02:21]} 30.
Rg1 {[%clk 00:14:32]} {[%emt 00:03:00]} Nf4 {[%clk 00:18:37]} {[%emt 00:00:22]}
31. Bh1 {[%clk 00:13:33]} {[%emt 00:01:28]} b6 {[%clk 00:15:54]} {[%emt
00:03:15]} 32. Ne4 {[%clk 00:10:20]} {[%emt 00:03:43]} Bd3 {[%clk 00:11:31]}
{[%emt 00:04:53]} 33. Nf2 {[%clk 00:09:41]} {[%emt 00:01:08]} Bg6 {[%clk
00:09:20]} {[%emt 00:02:42]} 34. Rg4 {[%clk 00:09:55]} {[%emt 00:00:14]} Ne2
{[%clk 00:08:07]} {[%emt 00:01:44]} 35. Bxd5 {[%clk 00:08:34]} {[%emt
00:01:51]} Ne5 {[%clk 00:08:35]} {[%emt 00:00:02]} 36. Rh4 {[%clk 00:08:46]}
{[%emt 00:00:17]} h5 {[%clk 00:04:02]} {[%emt 00:05:04]} 37. Be4 {[%clk
00:07:04]} {[%emt 00:02:12]} Nf3+ {[%clk 00:04:14]} {[%emt 00:00:18]} 38. Bxf3
{[%clk 00:06:30]} {[%emt 00:01:04]} Rxf3 {[%clk 00:04:43]} 39. Nd1 {[%clk
00:05:46]} {[%emt 00:01:14]} Bc2 {[%clk 00:00:49]} {[%emt 00:04:25]} 40. Kg2
{[%clk 00:06:07]} {[%emt 00:00:08]} Rg3+ {[%clk 00:00:34]} {[%emt 00:00:46]} 41.
Kf2 {[%clk 00:05:16]} {[%emt 00:01:19]} Bxd1 {[%clk 00:25:14]} {[%emt
00:05:50]} 42. Rxh5+ {[%clk 00:34:32]} {[%emt 00:01:14]} Kg6 {[%clk 00:25:32]}
{[%emt 00:00:12]} 43. Rh8 {[%clk 00:34:10]} {[%emt 00:00:51]} Kf5 {[%clk
00:25:45]} {[%emt 00:00:17]} 44. Rf8+ {[%clk 00:32:59]} {[%emt 00:01:41]} Ke4
{[%clk 00:23:05]} {[%emt 00:03:11]} 45. Re8+ {[%clk 00:33:07]} {[%emt
00:00:22]} Kf5 {[%clk 00:23:31]} {[%emt 00:00:04]} 46. Rf8+ {[%clk 00:26:56]}
{[%emt 00:06:40]} Ke6 {[%clk 00:23:50]} {[%emt 00:00:12]} 47. Rd8 {[%clk
00:27:12]} {[%emt 00:00:14]} Rxh3 {[%clk 00:24:13]} {[%emt 00:00:08]} 48. Rxd1
{[%clk 00:27:22]} {[%emt 00:00:19]} Nxc3 {[%clk 00:24:39]} {[%emt 00:00:04]} 49.
Rd3 {[%clk 00:24:48]} {[%emt 00:03:04]} Nd5 {[%clk 00:24:20]} {[%emt 00:00:50]}
50. Ke2 {[%clk 00:23:51]} {[%emt 00:01:27]} Rxe3+ {[%clk 00:21:35]} {[%emt
00:03:15]} 51. Rxe3+ {[%clk 00:24:16]} {[%emt 00:00:05]} Nxe3 {[%clk 00:22:03]}
{[%emt 00:00:02]} 52. Kxe3 {[%clk 00:24:39]} {[%emt 00:00:06]} Kd5 {[%clk
00:22:09]} {[%emt 00:00:24]} 53. Kd3 {[%clk 00:25:00]} {[%emt 00:00:09]} b5
{[%clk 00:22:03]} {[%emt 00:00:36]} 54. Kc3 {[%clk 00:24:38]} {[%emt 00:00:52]}
Ke4 {[%clk 00:22:31]} {[%emt 00:00:03]} 55. Kc2 {[%clk 00:24:35]} {[%emt
00:00:33]} Kd4 {[%clk 00:22:56]} {[%emt 00:00:05]} 56. Kd2 {[%clk 00:24:59]}
{[%emt 00:00:06]} Kc4 {[%clk 00:23:21]} {[%emt 00:00:05]} 57. Kc2 {[%clk
00:25:24]} {[%emt 00:00:05]} c6 {[%clk 00:23:49]} {[%emt 00:00:02]} 58. Kd2
{[%clk 00:23:52]} {[%emt 00:02:02]} Kb3 {[%clk 00:24:16]} {[%emt 00:00:03]} 59.
Kd3 {[%clk 00:24:15]} {[%emt 00:00:07]} Kxa3 {[%clk 00:24:37]} {[%emt
00:00:09]} 60. Kc3 {[%clk 00:24:40]} {[%emt 00:00:03]} Ka2 {[%clk 00:25:00]}
{[%emt 00:00:08]} 61. Kc2 {[%clk 00:25:02]} {[%emt 00:00:08]} a3 {[%clk
00:25:20]} {[%emt 00:00:11]} 0-1

[Event "18èmeFestival International d’Echecsde Rochefort"]
[Site "Rochefort, France"]
[Date "2019.02.21"]
[Round "8.2"]
[White "MU, Ke"]
[Black "SOSA, Tomas"]
[Result "0-1"]
[TimeControl "1h30 min/40coups + 30 min +  30sec/coup"]
[BlackTitle "IM"]
[WhiteFideId "8602778"]
[BlackFideId "121576"]
[WhiteElo "2404"]
[BlackElo "2502"]

1. d4 {[%clk 01:30:21]} {[%emt 00:00:38]} d5 {[%clk 01:28:25]} {[%emt
00:02:27]} 2. c4 {[%clk 01:30:33]} {[%emt 00:00:26]} e6 {[%clk 01:28:29]}
{[%emt 00:00:26]} 3. Nc3 {[%clk 01:30:50]} {[%emt 00:00:13]} Nf6 {[%clk
01:28:49]} {[%emt 00:00:10]} 4. Nf3 {[%clk 01:31:12]} {[%emt 00:00:07]} dxc4
{[%clk 01:29:15]} {[%emt 00:00:05]} 5. e3 {[%clk 01:30:25]} {[%emt 00:01:17]}
a6 {[%clk 01:29:38]} {[%emt 00:00:08]} 6. a4 {[%clk 01:30:39]} {[%emt
00:00:15]} Bb4 {[%clk 01:29:34]} {[%emt 00:00:33]} 7. Bxc4 {[%clk 01:31:03]}
{[%emt 00:00:06]} O-O {[%clk 01:29:59]} {[%emt 00:00:05]} 8. O-O {[%clk
01:30:58]} {[%emt 00:00:34]} b6 {[%clk 01:28:57]} {[%emt 00:01:33]} 9. Ne5
{[%clk 01:21:56]} {[%emt 00:09:32]} Bb7 {[%clk 01:28:35]} {[%emt 00:00:52]} 10.
Be2 {[%clk 01:21:41]} {[%emt 00:00:45]} Nbd7 {[%clk 01:25:33]} {[%emt
00:03:33]} 11. Nd3 {[%clk 01:15:49]} {[%emt 00:06:21]} Bd6 {[%clk 01:23:56]}
{[%emt 00:02:07]} 12. Bf3 {[%clk 01:15:00]} {[%emt 00:01:19]} Bxf3 {[%clk
01:03:11]} {[%emt 00:21:15]} 13. Qxf3 {[%clk 01:15:24]} {[%emt 00:00:06]} c5
{[%clk 01:03:34]} {[%emt 00:00:07]} 14. dxc5 {[%clk 01:15:09]} {[%emt
00:00:45]} Nxc5 {[%clk 01:03:48]} {[%emt 00:00:15]} 15. Nxc5 {[%clk 01:15:33]}
{[%emt 00:00:06]} bxc5 {[%clk 00:55:14]} {[%emt 00:09:04]} 16. a5 {[%clk
01:14:36]} {[%emt 00:01:27]} Qc7 {[%clk 00:52:35]} {[%emt 00:03:10]} 17. g3
{[%clk 01:14:59]} {[%emt 00:00:07]} Rab8 {[%clk 00:52:43]} {[%emt 00:00:22]} 18.
Ra2 {[%clk 01:14:23]} {[%emt 00:01:05]} Be5 {[%clk 00:52:00]} {[%emt 00:01:13]}
19. Bd2 {[%clk 01:11:07]} {[%emt 00:03:46]} Nd5 {[%clk 00:42:25]} {[%emt
00:10:05]} 20. Nxd5 {[%clk 01:00:43]} {[%emt 00:10:55]} exd5 {[%clk 00:42:48]}
{[%emt 00:00:07]} 21. Rc1 {[%clk 01:01:10]} {[%emt 00:00:03]} Qd6 {[%clk
00:39:59]} {[%emt 00:03:19]} 22. Bc3 {[%clk 00:57:45]} {[%emt 00:03:55]} d4
{[%clk 00:38:40]} {[%emt 00:01:50]} 23. exd4 {[%clk 00:57:45]} {[%emt
00:00:30]} cxd4 {[%clk 00:39:03]} {[%emt 00:00:07]} 24. Bd2 {[%clk 00:55:05]}
{[%emt 00:03:10]} Qe6 {[%clk 00:38:56]} {[%emt 00:00:37]} 25. Ra3 {[%clk
00:50:30]} {[%emt 00:05:06]} Rxb2 {[%clk 00:38:58]} {[%emt 00:00:27]} 26. Rc6
{[%clk 00:45:11]} {[%emt 00:05:50]} Qd7 {[%clk 00:28:08]} {[%emt 00:11:20]} 27.
Rd3 {[%clk 00:45:28]} {[%emt 00:00:13]} Qb7 {[%clk 00:27:52]} {[%emt 00:00:46]}
28. Kg2 {[%clk 00:40:23]} {[%emt 00:05:34]} Rc8 {[%clk 00:26:35]} {[%emt
00:01:47]} 29. Rc1 {[%clk 00:36:51]} {[%emt 00:04:03]} Rxc1 {[%clk 00:13:52]}
{[%emt 00:13:14]} 30. Bxc1 {[%clk 00:37:15]} {[%emt 00:00:05]} Rb1 {[%clk
00:12:19]} {[%emt 00:02:03]} 31. Qxb7 {[%clk 00:34:36]} {[%emt 00:03:10]} Rxb7
{[%clk 00:12:47]} {[%emt 00:00:01]} 32. Kf3 {[%clk 00:34:29]} {[%emt 00:00:36]}
h5 {[%clk 00:12:46]} {[%emt 00:00:31]} 33. h4 {[%clk 00:32:50]} {[%emt
00:02:08]} Rb5 {[%clk 00:12:51]} {[%emt 00:00:26]} 34. Bd2 {[%clk 00:31:03]}
{[%emt 00:02:18]} g6 {[%clk 00:13:15]} {[%emt 00:00:05]} 35. Ra3 {[%clk
00:31:20]} {[%emt 00:00:13]} Kf8 {[%clk 00:09:16]} {[%emt 00:04:29]} 36. Ra4
{[%clk 00:20:16]} {[%emt 00:11:34]} Ke7 {[%clk 00:09:40]} {[%emt 00:00:05]} 37.
Rc4 {[%clk 00:20:10]} {[%emt 00:00:36]} Kd6 {[%clk 00:09:05]} {[%emt 00:01:06]}
38. Rc8 {[%clk 00:14:39]} {[%emt 00:06:01]} Rb3+ {[%clk 00:09:29]} {[%emt
00:00:06]} 39. Ke2 {[%clk 00:14:48]} {[%emt 00:00:21]} Kd5 {[%clk 00:09:39]}
{[%emt 00:00:19]} 40. Re8 {[%clk 00:12:47]} {[%emt 00:02:32]} f6 {[%clk
00:05:02]} {[%emt 00:05:07]} 41. f4 {[%clk 00:02:07]} {[%emt 00:11:10]} Bd6
{[%clk 00:03:16]} {[%emt 00:02:15]} 42. Rd8 {[%clk 00:02:32]} {[%emt 00:00:06]}
Ke6 {[%clk 00:01:19]} {[%emt 00:02:26]} 43. Ra8 {[%clk 00:28:40]} {[%emt
00:04:24]} Rxg3 {[%clk 00:23:48]} {[%emt 00:08:00]} 44. Rxa6 {[%clk 00:29:04]}
{[%emt 00:00:06]} Rg2+ {[%clk 00:24:06]} {[%emt 00:00:12]} 45. Kd3 {[%clk
00:28:14]} {[%emt 00:01:19]} Kd5 {[%clk 00:24:30]} {[%emt 00:00:06]} 46. Rb6
{[%clk 00:28:05]} {[%emt 00:00:40]} Rg3+ {[%clk 00:24:45]} {[%emt 00:00:14]} 47.
Kc2 {[%clk 00:28:31]} {[%emt 00:00:04]} Bc5 {[%clk 00:20:02]} {[%emt 00:05:12]}
48. Rxf6 {[%clk 00:22:05]} {[%emt 00:06:57]} Kc4 {[%clk 00:19:18]} {[%emt
00:01:14]} 49. Re6 {[%clk 00:20:48]} {[%emt 00:01:46]} Rb3 {[%clk 00:10:08]}
{[%emt 00:09:41]} 50. a6 {[%clk 00:12:20]} {[%emt 00:08:58]} d3+ {[%clk
00:09:23]} {[%emt 00:01:14]} 51. Kd1 {[%clk 00:12:49]} {[%emt 00:00:01]} Rb1+
{[%clk 00:09:13]} {[%emt 00:00:40]} 52. Bc1 {[%clk 00:13:18]} {[%emt 00:00:01]}
Ra1 {[%clk 00:08:34]} {[%emt 00:01:09]} 53. Rxg6 {[%clk 00:09:19]} {[%emt
00:04:30]} Be3 {[%clk 00:07:40]} {[%emt 00:01:23]} 54. Rc6+ {[%clk 00:09:20]}
{[%emt 00:00:30]} Kb5 {[%clk 00:07:17]} {[%emt 00:00:53]} 0-1